[Event "*** Titled Tuesday 3|2 Blitz"]
[Site "Chess.com"]
[Date "2016.05.03"]
[Round "7"]
[White "viktorskliarov"]
[Black "PowerThinking2650"]
[Result "1-0"]
[WhiteElo "2423"]
[BlackElo "2172"]
[TimeControl "180+2"]
[EndTime "18:26:53 PDT"]
[Termination "viktorskliarov won by resignation"]

1. e4 {[%clk 0:03:01.9]} 1... e5 {[%clk 0:03:00.3]} 2. Nc3 {[%clk 0:03:02.8]}
2... Nf6 {[%clk 0:02:57.7]} 3. Bc4 {[%clk 0:03:03.9]} 3... Bc5 {[%clk
0:02:55.3]} 4. d3 {[%clk 0:03:04.8]} 4... d6 {[%clk 0:02:53.3]} 5. h3 {[%clk
0:03:04.5]} 5... Nc6 {[%clk 0:02:46.9]} 6. a3 {[%clk 0:03:05.7]} 6... Be6 {[%clk
0:02:46.7]} 7. Nd5 {[%clk 0:03:06.6]} 7... Bxd5 {[%clk 0:02:43.9]} 8. exd5
{[%clk 0:03:07.8]} 8... Ne7 {[%clk 0:02:44.3]} 9. Qf3 {[%clk 0:03:08.5]} 9... h6
{[%clk 0:02:38.3]} 10. Ne2 {[%clk 0:03:07.6]} 10... Qd7 {[%clk 0:02:37.1]} 11.
b4 {[%clk 0:03:04.8]} 11... Bb6 {[%clk 0:02:36.2]} 12. Ng3 {[%clk 0:03:05.5]}
12... c6 {[%clk 0:02:27.6]} 13. dxc6 {[%clk 0:03:03.7]} 13... bxc6 {[%clk
0:02:27.7]} 14. Be3 {[%clk 0:03:03]} 14... d5 {[%clk 0:02:24.3]} 15. Bb3 {[%clk
0:03:01.4]} 15... h5 {[%clk 0:02:04.2]} 16. O-O {[%clk 0:02:54.5]} 16... h4
{[%clk 0:02:03.9]} 17. Ne2 {[%clk 0:02:55.5]} 17... Qf5 {[%clk 0:01:59.6]} 18.
Qxf5 {[%clk 0:02:51.5]} 18... Nxf5 {[%clk 0:01:59.8]} 19. Bxb6 {[%clk
0:02:51.9]} 19... axb6 {[%clk 0:02:00.1]} 20. f4 {[%clk 0:02:51.3]} 20... e4
{[%clk 0:01:56]} 21. dxe4 {[%clk 0:02:48]} 21... Nxe4 {[%clk 0:01:55.7]} 22. b5
{[%clk 0:02:48.8]} 22... Nd2 {[%clk 0:01:45.8]} 23. Rfd1 {[%clk 0:02:48.7]}
23... Nxb3 {[%clk 0:01:27]} 24. cxb3 {[%clk 0:02:50.6]} 24... O-O-O {[%clk
0:01:13.8]} 25. bxc6 {[%clk 0:02:49.5]} 25... d4 {[%clk 0:01:13.8]} 26. b4
{[%clk 0:02:50.1]} 26... Rhe8 {[%clk 0:01:12.1]} 27. Rd2 {[%clk 0:02:47.5]}
27... d3 {[%clk 0:01:11.5]} 28. Nc3 {[%clk 0:02:48]} 28... Nd4 {[%clk
0:01:08.3]} 29. Rad1 {[%clk 0:02:40.3]} 29... Nxc6 {[%clk 0:00:42.1]} 30. Rxd3
{[%clk 0:02:40.5]} 30... Re1+ {[%clk 0:00:28.8]} 31. Rxe1 {[%clk 0:02:40.5]}
31... Rxd3 {[%clk 0:00:29.1]} 32. Rc1 {[%clk 0:02:41.4]} 32... Kb7 {[%clk
0:00:26]} 33. Kf2 {[%clk 0:02:41.5]} 33... Nd4 {[%clk 0:00:24.1]} 34. Rd1 {[%clk
0:02:23.6]} 34... Rxd1 {[%clk 0:00:23]} 35. Nxd1 {[%clk 0:02:23.5]} 35... Nc2
{[%clk 0:00:23.9]} 36. Ne3 {[%clk 0:01:47.9]} 36... Nxa3 {[%clk 0:00:23.6]} 37.
Kf3 {[%clk 0:01:49.1]} 37... Kc6 {[%clk 0:00:19.4]} 38. Kg4 {[%clk 0:01:50.2]}
38... Kb5 {[%clk 0:00:19.7]} 39. Nd5 {[%clk 0:01:51.2]} 39... Nc2 {[%clk
0:00:19]} 40. Kxh4 {[%clk 0:01:51.3]} 40... Nxb4 {[%clk 0:00:19.5]} 41. Ne3
{[%clk 0:01:36.5]} 41... Kc5 {[%clk 0:00:20]} 42. Kg5 {[%clk 0:01:35.5]} 42...
Kd4 {[%clk 0:00:20.6]} 43. Nf5+ {[%clk 0:01:36.2]} 43... Kc3 {[%clk 0:00:18.4]}
44. Nxg7 {[%clk 0:01:37]} 44... Nd5 {[%clk 0:00:14.9]} 45. h4 {[%clk 0:01:32.6]}
45... b5 {[%clk 0:00:14.3]} 46. h5 {[%clk 0:01:32.3]} 46... b4 {[%clk
0:00:14.8]} 47. h6 {[%clk 0:01:33.6]} 47... b3 {[%clk 0:00:15.4]} 48. h7 {[%clk
0:01:34.3]} 48... b2 {[%clk 0:00:15.2]} 49. h8=Q {[%clk 0:01:35.5]} 49... b1=Q
{[%clk 0:00:15.8]} 50. Qc8+ {[%clk 0:01:33]} 50... Kd3 {[%clk 0:00:11.6]} 51.
Qf5+ {[%clk 0:01:33]} 1-0

[Event "*** Titled Tuesday 3|2 Blitz"]
[Site "Chess.com"]
[Date "2016.05.03"]
[Round "7"]
[White "Newlight1"]
[Black "chesstatour"]
[Result "1-0"]
[WhiteElo "2252"]
[BlackElo "2025"]
[TimeControl "180+2"]
[EndTime "18:27:07 PDT"]
[Termination "Newlight1 won by resignation"]

1. e4 {[%clk 0:03:01.9]} 1... c6 {[%clk 0:03:00.2]} 2. d4 {[%clk 0:03:02.5]}
2... d5 {[%clk 0:03:01.7]} 3. e5 {[%clk 0:03:04.1]} 3... Bf5 {[%clk 0:03:02.3]}
4. h4 {[%clk 0:03:05.4]} 4... h5 {[%clk 0:03:02.1]} 5. c4 {[%clk 0:03:06.8]}
5... dxc4 {[%clk 0:03:01]} 6. Bxc4 {[%clk 0:03:07.2]} 6... e6 {[%clk 0:03:02.2]}
7. Nc3 {[%clk 0:03:05.7]} 7... Ne7 {[%clk 0:02:43.5]} 8. Nf3 {[%clk 0:02:55.1]}
8... Nd5 {[%clk 0:02:37.6]} 9. O-O {[%clk 0:02:51.5]} 9... Be7 {[%clk
0:02:37.5]} 10. Bg5 {[%clk 0:02:40.9]} 10... f6 {[%clk 0:02:09.8]} 11. Be3
{[%clk 0:02:33.6]} 11... Nd7 {[%clk 0:01:46.1]} 12. Nxd5 {[%clk 0:02:28.3]}
12... cxd5 {[%clk 0:01:34.7]} 13. Bd3 {[%clk 0:02:21.2]} 13... Be4 {[%clk
0:01:23]} 14. exf6 {[%clk 0:02:06]} 14... gxf6 {[%clk 0:01:21]} 15. Bf4 {[%clk
0:02:01.2]} 15... Rc8 {[%clk 0:01:01.9]} 16. Re1 {[%clk 0:01:56.4]} 16... f5
{[%clk 0:00:56.4]} 17. Bb5 {[%clk 0:01:52.9]} 17... Bxf3 {[%clk 0:00:50.1]} 18.
Qxf3 {[%clk 0:01:51.1]} 18... Kf7 {[%clk 0:00:49.2]} 19. Rxe6 {[%clk 0:01:14.4]}
19... Kxe6 {[%clk 0:00:20.5]} 20. Re1+ {[%clk 0:01:09.5]} 20... Kf7 {[%clk
0:00:21.6]} 21. Qxd5+ {[%clk 0:01:07.3]} 21... Ke8 {[%clk 0:00:22.2]} 22. Bg5
{[%clk 0:00:28.7]} 22... Rc7 {[%clk 0:00:14.5]} 23. Bxe7 {[%clk 0:00:22.8]}
23... Qxe7 {[%clk 0:00:14.8]} 24. Rxe7+ {[%clk 0:00:24.7]} 24... Kxe7 {[%clk
0:00:16.2]} 25. Bxd7 {[%clk 0:00:26.3]} 25... Rd8 {[%clk 0:00:14.4]} 26. Qxf5
{[%clk 0:00:20.4]} 26... Rcxd7 {[%clk 0:00:14.5]} 27. Qg5+ {[%clk 0:00:20.6]}
27... Ke6 {[%clk 0:00:12.3]} 28. Qg6+ {[%clk 0:00:19.8]} 28... Ke7 {[%clk
0:00:12.2]} 29. Qxh5 {[%clk 0:00:20.4]} 29... Rxd4 {[%clk 0:00:12.7]} 30. Qg5+
{[%clk 0:00:22]} 30... Ke6 {[%clk 0:00:13.4]} 31. f4 {[%clk 0:00:22.6]} 31...
R4d5 {[%clk 0:00:09.6]} 32. f5+ {[%clk 0:00:23.2]} 32... Kf7 {[%clk 0:00:04.5]}
33. Qg6+ {[%clk 0:00:24]} 33... Kf8 {[%clk 0:00:05.8]} 34. f6 {[%clk 0:00:24.1]}
34... R8d7 {[%clk 0:00:05.8]} 35. Qh6+ {[%clk 0:00:21.1]} 35... Kg8 {[%clk
0:00:04.7]} 36. Qg6+ {[%clk 0:00:20.5]} 36... Kf8 {[%clk 0:00:05.4]} 37. h5
{[%clk 0:00:21.9]} 37... Rf7 {[%clk 0:00:05]} 38. h6 {[%clk 0:00:22.2]} 38...
Rd6 {[%clk 0:00:06]} 39. h7 {[%clk 0:00:22.5]} 39... Rd1+ {[%clk 0:00:02.1]} 40.
Kh2 {[%clk 0:00:22.8]} 40... Rxh7+ {[%clk 0:00:03]} 41. Qxh7 {[%clk 0:00:24.2]}
1-0

[Event "*** Titled Tuesday 3|2 Blitz"]
[Site "Chess.com"]
[Date "2016.05.03"]
[Round "7"]
[White "Penguininja"]
[Black "Zurability"]
[Result "1-0"]
[WhiteElo "2243"]
[BlackElo "2407"]
[TimeControl "180+2"]
[EndTime "18:28:25 PDT"]
[Termination "Penguininja won on time"]

1. d4 {[%clk 0:02:57.7]} 1... g6 {[%clk 0:03:01.9]} 2. c4 {[%clk 0:02:53.6]}
2... Bg7 {[%clk 0:03:03.1]} 3. Nf3 {[%clk 0:02:54.3]} 3... d6 {[%clk 0:03:03.9]}
4. Nc3 {[%clk 0:02:55.4]} 4... e5 {[%clk 0:03:04]} 5. Bg5 {[%clk 0:02:55.5]}
5... f6 {[%clk 0:03:03.4]} 6. Bc1 {[%clk 0:02:54.1]} 6... Nc6 {[%clk 0:03:00.5]}
7. e4 {[%clk 0:02:50.1]} 7... Nh6 {[%clk 0:02:48]} 8. h3 {[%clk 0:02:39.8]} 8...
Nf7 {[%clk 0:02:46.8]} 9. Be3 {[%clk 0:02:40.4]} 9... O-O {[%clk 0:02:47.3]} 10.
d5 {[%clk 0:02:37.5]} 10... Ne7 {[%clk 0:02:47.8]} 11. Nd2 {[%clk 0:02:38.7]}
11... f5 {[%clk 0:02:48.6]} 12. f4 {[%clk 0:02:39.4]} 12... exf4 {[%clk
0:02:33.8]} 13. Bxf4 {[%clk 0:02:39.2]} 13... g5 {[%clk 0:02:35.4]} 14. Be3
{[%clk 0:02:39]} 14... f4 {[%clk 0:02:35.2]} 15. Bf2 {[%clk 0:02:40]} 15... Ng6
{[%clk 0:02:36.7]} 16. Be2 {[%clk 0:02:40.7]} 16... Nfe5 {[%clk 0:02:37.6]} 17.
Nf3 {[%clk 0:02:41]} 17... Nxf3+ {[%clk 0:02:36.8]} 18. gxf3 {[%clk 0:02:41.9]}
18... Kh8 {[%clk 0:02:33.8]} 19. Qc2 {[%clk 0:02:42.2]} 19... Be5 {[%clk
0:02:34.6]} 20. O-O-O {[%clk 0:02:43.3]} 20... h5 {[%clk 0:02:34.6]} 21. Rdg1
{[%clk 0:02:41.1]} 21... h4 {[%clk 0:02:30.7]} 22. Rg2 {[%clk 0:02:33.2]} 22...
Kh7 {[%clk 0:02:31.6]} 23. Rhg1 {[%clk 0:02:34.2]} 23... Kh6 {[%clk 0:02:33]}
24. Bd3 {[%clk 0:02:23.6]} 24... Bxh3 {[%clk 0:02:31.8]} 25. Rh2 {[%clk
0:02:24.6]} 25... Bd7 {[%clk 0:02:31.9]} 26. Ne2 {[%clk 0:02:26.2]} 26... Qf6
{[%clk 0:02:32.1]} 27. Kb1 {[%clk 0:02:12]} 27... b6 {[%clk 0:02:31.6]} 28. Nc1
{[%clk 0:02:10.4]} 28... a5 {[%clk 0:02:31.2]} 29. Bf1 {[%clk 0:02:11.7]} 29...
Rg8 {[%clk 0:02:30.9]} 30. Bh3 {[%clk 0:02:12.7]} 30... Bxh3 {[%clk 0:02:30.1]}
31. Rxh3 {[%clk 0:02:14.6]} 31... Kg7 {[%clk 0:02:29]} 32. Ne2 {[%clk 0:02:12]}
32... Kf7 {[%clk 0:02:29.9]} 33. Rd1 {[%clk 0:02:10.2]} 33... Qe7 {[%clk
0:02:24.2]} 34. Bd4 {[%clk 0:02:04.8]} 34... Qd7 {[%clk 0:02:22.5]} 35. Rdh1
{[%clk 0:01:59.7]} 35... Rh8 {[%clk 0:02:20.3]} 36. Bxe5 {[%clk 0:01:56]} 36...
dxe5 {[%clk 0:02:21.5]} 37. c5 {[%clk 0:01:54.4]} 37... bxc5 {[%clk 0:02:18.6]}
38. Qxc5 {[%clk 0:01:52.1]} 38... Rhb8 {[%clk 0:02:19.3]} 39. Nc3 {[%clk
0:01:52.4]} 39... Rb6 {[%clk 0:02:18.5]} 40. R3h2 {[%clk 0:01:45.6]} 40... Rab8
{[%clk 0:02:18.8]} 41. Ka1 {[%clk 0:01:42.7]} 41... Kf6 {[%clk 0:02:11.7]} 42.
b3 {[%clk 0:01:30.2]} 42... Rb4 {[%clk 0:02:03.6]} 43. Qxa5 {[%clk 0:01:11.1]}
43... c6 {[%clk 0:02:00.6]} 44. dxc6 {[%clk 0:01:08.1]} 44... Qd4 {[%clk
0:02:00.1]} 45. Rc1 {[%clk 0:00:40.4]} 45... R8b5 {[%clk 0:02:00.3]} 46. Qa8
{[%clk 0:00:34.9]} 46... Rc5 {[%clk 0:02:01.6]} 47. Rhc2 {[%clk 0:00:29.8]}
47... Rb6 {[%clk 0:02:02.3]} 48. Kb1 {[%clk 0:00:28]} 48... Ne7 {[%clk
0:01:55.9]} 49. Qf8+ {[%clk 0:00:23.1]} 49... Ke6 {[%clk 0:01:56.8]} 50. Qh6+
{[%clk 0:00:22.2]} 50... Kf7 {[%clk 0:01:57.2]} 51. Qh7+ {[%clk 0:00:23.5]}
51... Kf6 {[%clk 0:01:58.3]} 52. Nd5+ {[%clk 0:00:20.5]} 52... Nxd5 {[%clk
0:01:58.8]} 53. Rxc5 {[%clk 0:00:21.1]} 53... Qd3+ {[%clk 0:02:00.2]} 54. R5c2
{[%clk 0:00:21.8]} 54... Nc3+ {[%clk 0:01:59.5]} 55. Kb2 {[%clk 0:00:22.1]}
55... Na4+ {[%clk 0:02:01.2]} 56. Ka1 {[%clk 0:00:22.1]} 56... Qd4+ {[%clk
0:02:01.9]} 57. Kb1 {[%clk 0:00:23.6]} 1-0

[Event "*** Titled Tuesday 3|2 Blitz"]
[Site "Chess.com"]
[Date "2016.05.03"]
[Round "7"]
[White "Zlatan56"]
[Black "Noukii"]
[Result "1-0"]
[WhiteElo "2608"]
[BlackElo "2693"]
[TimeControl "180+2"]
[EndTime "18:28:29 PDT"]
[Termination "Zlatan56 won by resignation"]

1. g3 {[%clk 0:03:01.9]} 1... d5 {[%clk 0:02:59.7]} 2. Bg2 {[%clk 0:03:02.3]}
2... c6 {[%clk 0:02:59.6]} 3. Nf3 {[%clk 0:03:02.5]} 3... Bg4 {[%clk 0:03:00.7]}
4. O-O {[%clk 0:03:02.5]} 4... e6 {[%clk 0:02:58.4]} 5. c4 {[%clk 0:03:01.5]}
5... Nf6 {[%clk 0:02:58.7]} 6. d3 {[%clk 0:03:00.9]} 6... Nbd7 {[%clk
0:02:47.3]} 7. cxd5 {[%clk 0:03:00.7]} 7... exd5 {[%clk 0:02:46.4]} 8. h3 {[%clk
0:03:00.9]} 8... Bxf3 {[%clk 0:02:42.3]} 9. Bxf3 {[%clk 0:03:02.8]} 9... Be7
{[%clk 0:02:42.7]} 10. Bg2 {[%clk 0:02:59.6]} 10... O-O {[%clk 0:02:43.2]} 11.
e4 {[%clk 0:03:00.1]} 11... dxe4 {[%clk 0:02:40.4]} 12. dxe4 {[%clk 0:03:00.5]}
12... Nc5 {[%clk 0:02:42]} 13. Nc3 {[%clk 0:02:59]} 13... Qxd1 {[%clk
0:02:40.3]} 14. Rxd1 {[%clk 0:02:58.8]} 14... Rfd8 {[%clk 0:02:41.9]} 15. Be3
{[%clk 0:02:54]} 15... Nd3 {[%clk 0:02:42.4]} 16. Bf1 {[%clk 0:02:36.9]} 16...
Nb4 {[%clk 0:01:59.7]} 17. Rxd8+ {[%clk 0:02:31.5]} 17... Bxd8 {[%clk 0:01:48]}
18. Rd1 {[%clk 0:02:09.5]} 18... Bb6 {[%clk 0:01:42.5]} 19. Bxb6 {[%clk
0:02:09.5]} 19... axb6 {[%clk 0:01:44.4]} 20. a3 {[%clk 0:02:10.6]} 20... Na6
{[%clk 0:01:10.6]} 21. e5 {[%clk 0:02:10.9]} 21... Ne8 {[%clk 0:01:11]} 22. Bxa6
{[%clk 0:02:11.4]} 22... bxa6 {[%clk 0:01:11.9]} 23. Rd7 {[%clk 0:02:11.9]}
23... Rc8 {[%clk 0:01:03.4]} 24. Na4 {[%clk 0:01:52.3]} 24... Rb8 {[%clk
0:00:58.3]} 25. f4 {[%clk 0:01:40.1]} 25... g6 {[%clk 0:00:54.1]} 26. Ra7 {[%clk
0:01:32.7]} 26... a5 {[%clk 0:00:31.8]} 27. Ra6 {[%clk 0:01:31.7]} 27... b5
{[%clk 0:00:32.8]} 28. Nc5 {[%clk 0:01:32]} 28... Rd8 {[%clk 0:00:34.3]} 29.
Rxa5 {[%clk 0:00:56.6]} 29... Rd1+ {[%clk 0:00:28]} 30. Kf2 {[%clk 0:00:57.5]}
30... Rd2+ {[%clk 0:00:29.7]} 31. Ke3 {[%clk 0:00:59]} 31... Rxb2 {[%clk
0:00:31.3]} 32. Ra8 {[%clk 0:00:47.5]} 32... Kf8 {[%clk 0:00:32.5]} 33. Ne4
{[%clk 0:00:48]} 33... Ke7 {[%clk 0:00:27.2]} 34. Ra7+ {[%clk 0:00:47]} 34...
Ke6 {[%clk 0:00:23.7]} 35. Ng5+ {[%clk 0:00:41.4]} 35... Kd5 {[%clk 0:00:23.3]}
36. Rd7+ {[%clk 0:00:42.2]} 36... Kc5 {[%clk 0:00:20.9]} 37. Ne4+ {[%clk
0:00:35.9]} 37... Kb6 {[%clk 0:00:21]} 38. Rxf7 {[%clk 0:00:34.2]} 38... Nc7
{[%clk 0:00:22.6]} 39. Nd6 {[%clk 0:00:31.4]} 39... Rb3+ {[%clk 0:00:20.6]} 40.
Kf2 {[%clk 0:00:32.3]} 40... Rxa3 {[%clk 0:00:21.5]} 41. g4 {[%clk 0:00:28.5]}
41... Ra2+ {[%clk 0:00:17.4]} 42. Kg3 {[%clk 0:00:28.5]} 42... b4 {[%clk
0:00:18.4]} 43. Nc8+ {[%clk 0:00:23.1]} 43... Kb7 {[%clk 0:00:18.1]} 44. Nd6+
{[%clk 0:00:24.1]} 44... Kb6 {[%clk 0:00:18.3]} 45. Nc4+ {[%clk 0:00:24.1]}
45... Kc5 {[%clk 0:00:19.7]} 46. Rxc7 {[%clk 0:00:23.9]} 46... Kxc4 {[%clk
0:00:13.4]} 47. Rxc6+ {[%clk 0:00:24.8]} 47... Kb5 {[%clk 0:00:13.8]} 48. Rc8
{[%clk 0:00:21.8]} 48... Ra6 {[%clk 0:00:13.8]} 49. Rb8+ {[%clk 0:00:19.4]}
49... Rb6 {[%clk 0:00:14.7]} 50. Rd8 {[%clk 0:00:15.5]} 50... b3 {[%clk
0:00:15.6]} 51. Rd1 {[%clk 0:00:16.9]} 51... b2 {[%clk 0:00:16.1]} 52. f5 {[%clk
0:00:15.1]} 52... gxf5 {[%clk 0:00:13.4]} 53. gxf5 {[%clk 0:00:17]} 53... Kc5
{[%clk 0:00:14.1]} 54. Rb1 {[%clk 0:00:13.8]} 54... Rb4 {[%clk 0:00:06.9]} 55.
f6 {[%clk 0:00:12.7]} 55... Kd5 {[%clk 0:00:08.1]} 56. f7 {[%clk 0:00:13.6]}
56... Rb8 {[%clk 0:00:09.2]} 57. Rxb2 {[%clk 0:00:14.5]} 57... Kxe5 {[%clk
0:00:10.8]} 58. Rxb8 {[%clk 0:00:14.9]} 1-0

[Event "*** Titled Tuesday 3|2 Blitz"]
[Site "Chess.com"]
[Date "2016.05.03"]
[Round "7"]
[White "rookoco"]
[Black "jposthuma"]
[Result "1-0"]
[WhiteElo "2461"]
[BlackElo "2142"]
[TimeControl "180+2"]
[EndTime "18:28:38 PDT"]
[Termination "rookoco won by resignation"]

1. d4 {[%clk 0:03:01.9]} 1... Nf6 {[%clk 0:02:59.8]} 2. c4 {[%clk 0:02:44.9]}
2... c5 {[%clk 0:03:01.3]} 3. Nf3 {[%clk 0:02:45.1]} 3... cxd4 {[%clk
0:03:02.2]} 4. Nxd4 {[%clk 0:02:45.6]} 4... e5 {[%clk 0:03:03.9]} 5. Nb5 {[%clk
0:02:46.4]} 5... d5 {[%clk 0:03:05.6]} 6. cxd5 {[%clk 0:02:46.9]} 6... Bc5
{[%clk 0:03:07.3]} 7. e3 {[%clk 0:02:46.6]} 7... O-O {[%clk 0:03:07.5]} 8. N5c3
{[%clk 0:02:46.3]} 8... e4 {[%clk 0:03:08.8]} 9. Be2 {[%clk 0:02:46.8]} 9... Bf5
{[%clk 0:03:09.3]} 10. g4 {[%clk 0:02:46.5]} 10... Bg6 {[%clk 0:03:09.6]} 11. g5
{[%clk 0:02:46.9]} 11... Nfd7 {[%clk 0:03:08.3]} 12. h4 {[%clk 0:02:47.2]} 12...
Ne5 {[%clk 0:02:57.9]} 13. h5 {[%clk 0:02:46.7]} 13... Bf5 {[%clk 0:02:59]} 14.
Nd2 {[%clk 0:02:47.2]} 14... Qxg5 {[%clk 0:02:39.1]} 15. Ndxe4 {[%clk 0:02:45]}
15... Qg2 {[%clk 0:02:22.9]} 16. Ng3 {[%clk 0:02:44.1]} 16... Nbd7 {[%clk
0:01:23.3]} 17. Rh4 {[%clk 0:01:58.5]} 17... Qg1+ {[%clk 0:01:10.6]} 18. Nf1
{[%clk 0:01:22.8]} 18... Be7 {[%clk 0:00:55.4]} 19. Rf4 {[%clk 0:01:21.5]} 19...
Bh3 {[%clk 0:00:50.8]} 20. Ne4 {[%clk 0:01:13]} 20... f5 {[%clk 0:00:25.4]} 21.
Ng3 {[%clk 0:01:01.4]} 21... Bg5 {[%clk 0:00:22.6]} 22. Rb4 {[%clk 0:00:52.4]}
22... Rae8 {[%clk 0:00:16.7]} 23. d6 {[%clk 0:00:45.7]} 23... f4 {[%clk
0:00:16.9]} 24. Qd5+ {[%clk 0:00:26.3]} 24... Be6 {[%clk 0:00:17.4]} 25. Qh1
{[%clk 0:00:26.4]} 25... Qxh1 {[%clk 0:00:05.1]} 26. Nxh1 {[%clk 0:00:27.3]}
26... f3 {[%clk 0:00:05.1]} 27. Bb5 {[%clk 0:00:25.6]} 27... a6 {[%clk
0:00:05.2]} 28. Bxd7 {[%clk 0:00:25.5]} 28... Nd3+ {[%clk 0:00:04.8]} 29. Kd2
{[%clk 0:00:26.5]} 29... Nxb4 {[%clk 0:00:06.1]} 30. Bxe8 {[%clk 0:00:27.1]}
30... Rxe8 {[%clk 0:00:07.8]} 31. Nh2 {[%clk 0:00:28]} 31... Bd5 {[%clk
0:00:08.1]} 32. Ng3 {[%clk 0:00:28.3]} 32... Rd8 {[%clk 0:00:09.1]} 33. a3
{[%clk 0:00:27.9]} 33... Nc6 {[%clk 0:00:09.1]} 34. Ke1 {[%clk 0:00:25.9]} 34...
Rxd6 {[%clk 0:00:09.9]} 35. e4 {[%clk 0:00:27.3]} 35... Bxc1 {[%clk 0:00:10.3]}
36. Rxc1 {[%clk 0:00:28.4]} 36... Bb3 {[%clk 0:00:09.7]} 37. Nxf3 {[%clk
0:00:29.2]} 37... Rd3 {[%clk 0:00:06.5]} 38. Nd2 {[%clk 0:00:29.6]} 38... Be6
{[%clk 0:00:05.6]} 39. Ke2 {[%clk 0:00:30.1]} 39... Ne5 {[%clk 0:00:05.2]} 40.
Rc5 {[%clk 0:00:30.5]} 40... Bg4+ {[%clk 0:00:02.4]} 41. Ke1 {[%clk 0:00:28.8]}
41... Nf3+ {[%clk 0:00:02.7]} 42. Nxf3 {[%clk 0:00:27.3]} 42... Bxf3 {[%clk
0:00:04.6]} 43. Rc1 {[%clk 0:00:28.2]} 43... Rb3 {[%clk 0:00:05.1]} 44. Rc2
{[%clk 0:00:29]} 44... Rd3 {[%clk 0:00:05.6]} 45. Rd2 {[%clk 0:00:30.4]} 45...
Rb3 {[%clk 0:00:06.9]} 46. e5 {[%clk 0:00:27]} 46... Kf7 {[%clk 0:00:08.2]} 47.
Nf5 {[%clk 0:00:27.3]} 47... g6 {[%clk 0:00:07.8]} 48. hxg6+ {[%clk 0:00:27.1]}
48... hxg6 {[%clk 0:00:09.7]} 49. e6+ {[%clk 0:00:24.8]} 49... Kf6 {[%clk
0:00:08.3]} 50. Nd4 {[%clk 0:00:24.6]} 50... Rb6 {[%clk 0:00:07.6]} 51. Nxf3
{[%clk 0:00:25.6]} 51... Rxe6+ {[%clk 0:00:09.2]} 52. Kf1 {[%clk 0:00:26.8]}
52... Rb6 {[%clk 0:00:10]} 53. Kg2 {[%clk 0:00:28.2]} 53... Rb3 {[%clk
0:00:10.7]} 54. Kg3 {[%clk 0:00:29.4]} 54... a5 {[%clk 0:00:09.5]} 55. Kf4
{[%clk 0:00:29.8]} 55... Rb5 {[%clk 0:00:08.3]} 56. Nd4 {[%clk 0:00:28.9]} 56...
Rd5 {[%clk 0:00:09.3]} 57. Ke4 {[%clk 0:00:30]} 57... Re5+ {[%clk 0:00:10.6]}
58. Kd3 {[%clk 0:00:31.3]} 58... Rd5 {[%clk 0:00:10.6]} 59. Kc4 {[%clk
0:00:32.6]} 59... Rh5 {[%clk 0:00:11.2]} 60. f4 {[%clk 0:00:31.6]} 60... b6
{[%clk 0:00:12.3]} 61. b4 {[%clk 0:00:32.6]} 61... axb4 {[%clk 0:00:12.8]} 62.
axb4 {[%clk 0:00:34.5]} 62... Ke7 {[%clk 0:00:10.9]} 63. Re2+ {[%clk 0:00:35.3]}
63... Kd6 {[%clk 0:00:11.9]} 64. Re6+ {[%clk 0:00:36.3]} 64... Kc7 {[%clk
0:00:12.9]} 65. Rxg6 {[%clk 0:00:37.5]} 65... Rh4 {[%clk 0:00:13.6]} 66. f5
{[%clk 0:00:38.4]} 66... b5+ {[%clk 0:00:14.9]} 67. Kc5 {[%clk 0:00:39.3]} 67...
Rf4 {[%clk 0:00:15.5]} 68. Ne6+ {[%clk 0:00:39.7]} 68... Kd7 {[%clk 0:00:15.5]}
69. Nxf4 {[%clk 0:00:41.6]} 69... Ke7 {[%clk 0:00:17.1]} 70. Re6+ {[%clk
0:00:42.3]} 70... Kd7 {[%clk 0:00:18.4]} 71. Nd5 {[%clk 0:00:43.2]} 71... Kc8
{[%clk 0:00:19.2]} 72. Kc6 {[%clk 0:00:44.6]} 72... Kd8 {[%clk 0:00:20.8]} 73.
f6 {[%clk 0:00:45.9]} 1-0